fUSD/lending_fUSD_20240802
["ID","MTS","AMOUNT","RATE_DAILY","PERIOD"]
[333884055,1722598247052,-536.15851973,0.00019178,2]
[333884056,1722598247062,-500.0,0.00019178,2]
[333884057,1722598247072,-1981.45,0.00019178,2]
[333884058,1722598247082,-500.0,0.00019178,2]
[333884059,1722598247092,-931.75,0.00019178,2]
[333884060,1722598247102,-500.0,0.00019178,2]
[333884061,1722598247112,-1463.44,0.00019178,2]
[333884062,1722598247122,-500.0,0.00019178,2]
[333884063,1722598247132,-500.0,0.00019178,2]
[333884064,1722598247142,-2242.2,0.00019178,2]
[333884065,1722598247152,-500.0,0.00019178,2]
[333884066,1722598247162,-500.0,0.00019178,2]
[333884067,1722598247172,-500.0,0.00019178,2]
[333884068,1722598247182,-564.98,0.00019178,2]
[333884069,1722598247192,-500.0,0.00019178,2]
[333884070,1722598247202,-1235.32,0.00019178,2]
[333884071,1722598247212,-538.60574442,0.00019178,2]
[333884072,1722598247222,-500.0,0.00019178,2]
[333884073,1722598247231,-151.0,0.00019178,2]
[333884074,1722598247242,-151.0,0.00019178,2]
[333884076,1722598247251,-151.0,0.00019178,2]
[333884077,1722598247261,-151.0,0.00019178,2]
[333884078,1722598247271,-151.0,0.00019178,2]
[333884079,1722598247280,-151.0,0.00019178,2]
[333884080,1722598247291,-151.0,0.00019178,2]
[333884081,1722598247302,-151.0,0.00019178,2]
[333884082,1722598247312,-151.0,0.00019178,2]
[333884083,1722598247322,-1716.27,0.00019178,2]
[333884084,1722598247332,-2224.18,0.00019178,2]
[333884085,1722598247341,-229.100045,0.00019178,2]
[333884086,1722598247351,-500.0,0.00019178,2]
[333884087,1722598247361,-500.0,0.00019178,2]
[333884088,1722598247371,-229.100045,0.00019178,2]
[333884089,1722598247381,-151.0,0.00019178,2]
[333884090,1722598247391,-229.100045,0.00019178,2]
[333884091,1722598247401,-151.0,0.00019178,2]
[333884092,1722598247411,-229.100045,0.00019178,2]
[333884093,1722598247421,-800.61,0.00019178,2]
[333884094,1722598247431,-151.0,0.00019178,2]
[333884095,1722598247441,-229.100045,0.00019178,2]
[333884096,1722598247451,-151.0,0.00019178,2]
[333884097,1722598247462,-229.100045,0.00019178,2]
[333884098,1722598247471,-151.0,0.00019178,2]
[333884099,1722598247482,-229.100045,0.00019178,2]
[333884100,1722598247492,-500.0,0.00019178,2]
[333884101,1722598247503,-2749.1,0.00019178,2]
[333884102,1722598247512,-229.100045,0.00019178,2]
[333884103,1722598247523,-160.476808,0.00019178,2]
[333884104,1722598247533,-500.0,0.00019178,2]
[333884105,1722598247542,-500.0,0.00019178,2]
[333884106,1722598247552,-1992.76,0.00019178,2]
[333884107,1722598247561,-2554.82,0.00019178,2]
[333884108,1722598247571,-229.100045,0.00019178,2]
[333884109,1722598247581,-500.0,0.00019178,2]
[333884110,1722598247590,-1649.41,0.00019178,2]
[333884111,1722598247600,-229.100045,0.00019178,2]
[333884112,1722598247610,-500.0,0.00019178,2]
[333884113,1722598247620,-229.100045,0.00019178,2]
[333884114,1722598247630,-229.100045,0.00019178,2]
[333884115,1722598247639,-229.100045,0.00019178,2]
[333884116,1722598247649,-229.100045,0.00019178,2]
[333884117,1722598247659,-229.100045,0.00019178,2]
[333884118,1722598247668,-229.100045,0.00019178,2]
[333884119,1722598247679,-229.100045,0.00019178,2]
[333884120,1722598247689,-229.100045,0.00019178,2]
[333884121,1722598247699,-500.0,0.00019178,2]
[333884122,1722598247709,-1529.12,0.00019178,2]
[333884123,1722598247718,-500.0,0.00019178,2]
[333884124,1722598247729,-708.4,0.00019178,2]
[333884125,1722598247739,-1135.6,0.00019178,2]
[333884126,1722598247748,-500.0,0.00019178,2]
[333884127,1722598247758,-500.0,0.00019178,2]
[333884128,1722598247768,-500.0,0.00019178,2]
[333884129,1722598247782,-500.0,0.00019178,2]
[333884130,1722598247792,-1548.0,0.00019178,2]
[333884131,1722598247803,-553.60124139,0.00019178,2]
[333884132,1722598247814,-921.09,0.00019178,2]
[333884133,1722598247824,-500.0,0.00019178,2]
[333884134,1722598247834,-2099.37,0.00019178,2]
[333884135,1722598247845,-500.0,0.00019178,2]
[333884136,1722598247859,-2519.66,0.00019178,2]
[333884137,1722598247870,-505.12,0.00019178,2]
[333884138,1722598247880,-2287.79,0.00019178,2]
[333884139,1722598247890,-658.89,0.00019178,2]
[333884140,1722598247900,-500.0,0.00019178,2]
[333884141,1722598247909,-1632.14,0.00019178,2]
[333884142,1722598247919,-1430.02,0.00019178,2]
[333884143,1722598247929,-639.56091823,0.00019178,2]
[333884144,1722598247938,-192.39889096,0.00019178,2]
[333884145,1722598247948,-2145.55,0.00019178,2]
[333884146,1722598247958,-500.0,0.00019178,2]
[333884147,1722598247967,-500.0,0.00019178,2]
[333884148,1722598247977,-1538.97,0.00019178,2]
[333884149,1722598247987,-151.0,0.00019178,2]
[333884150,1722598247996,-151.0,0.00019178,2]
[333884151,1722598248006,-1662.58,0.00019178,2]
[333884152,1722598248015,-962.54,0.00019178,2]
[333884153,1722598248025,-151.0,0.00019178,2]
[333884154,1722598248035,-500.0,0.00019178,2]
[333884155,1722598248045,-500.0,0.00019178,2]
[333884156,1722598248057,-2541.08,0.00019178,2]
[333884157,1722598248067,-151.0,0.00019178,2]
[333884158,1722598248078,-246.331591,0.00019178,2]
[333884159,1722598248088,-612.18,0.00019178,2]
[333884160,1722598248098,-150.0,0.00019178,2]
[333884161,1722598248107,-561.33,0.00019178,2]
[333884162,1722598248117,-1264.02,0.00019178,2]
[333884163,1722598248126,-151.0,0.00019178,2]
[333884164,1722598248136,-1173.25,0.00019178,2]
[333884165,1722598248146,-151.0,0.00019178,2]
[333884166,1722598248155,-547.31,0.00019178,2]
[333884167,1722598248165,-500.0,0.00019178,2]
[333884168,1722598248175,-151.0,0.00019178,2]
[333884169,1722598248185,-151.0,0.00019178,2]
[333884170,1722598248195,-804.3,0.00019178,2]
[333884171,1722598248205,-727.24,0.00019178,2]
[333884172,1722598248215,-151.0,0.00019178,2]
[333884173,1722598248225,-500.0,0.00019178,2]
[333884174,1722598248235,-151.0,0.00019178,2]
[333884175,1722598248245,-2973.13,0.00019178,2]
[333884176,1722598248254,-151.0,0.00019178,2]
[333884177,1722598248264,-297.563422,0.00019178,2]
[333884178,1722598248274,-151.0,0.00019178,2]
[333884179,1722598248283,-500.0,0.00019178,2]
[333884180,1722598248292,-151.0,0.00019178,2]
[333884181,1722598248302,-500.0,0.00019178,2]
[333884182,1722598248311,-2718.38,0.00019178,2]
[333884183,1722598248320,-500.0,0.00019178,2]
[333884184,1722598248330,-500.0,0.00019178,2]
[333884185,1722598248339,-151.0,0.00019178,2]
[333884186,1722598248349,-151.0,0.00019178,2]
[333884187,1722598248359,-151.0,0.00019178,2]
[333884188,1722598248369,-151.0,0.00019178,2]
[333884189,1722598248379,-151.0,0.00019178,2]
[333884190,1722598248388,-151.0,0.00019178,2]
[333884191,1722598248398,-151.0,0.00019178,2]
[333884192,1722598248408,-151.0,0.00019178,2]
[333884193,1722598248417,-151.0,0.00019178,2]
[333884194,1722598248427,-151.0,0.00019178,2]
[333884195,1722598248436,-151.0,0.00019178,2]
[333884196,1722598248447,-151.0,0.00019178,2]
[333884197,1722598248456,-633.81,0.00019178,2]
[333884198,1722598248466,-151.0,0.00019178,2]
[333884199,1722598248476,-500.0,0.00019178,2]
[333884200,1722598248485,-1383.62,0.00019178,2]
[333884201,1722598248506,-151.0,0.00019178,2]
[333884202,1722598248516,-500.0,0.00019178,2]
[333884203,1722598248527,-500.0,0.00019178,2]
[333884204,1722598248537,-151.0,0.00019178,2]
[333884205,1722598248547,-725.31,0.00019178,2]
[333884206,1722598248559,-1228.53,0.00019178,2]
[333884207,1722598248570,-151.0,0.00019178,2]
[333884208,1722598248580,-1145.05,0.00019178,2]
[333884209,1722598248591,-151.0,0.00019178,2]
[333884210,1722598248602,-209.84051,0.00019178,2]
[333884211,1722598248612,-500.0,0.00019178,2]
[333884212,1722598248622,-500.0,0.00019178,2]
[333884213,1722598248632,-308.36242773,0.00019178,2]
[333884214,1722598248642,-5557.91,0.00019178,2]
[333884215,1722598248652,-2666.53,0.00019178,2]
[333884216,1722598248663,-3875.0,0.00019178,2]
[333884217,1722598248673,-618.51201757,0.00019178,2]
[333884218,1722598248683,-1688.14,0.00019178,2]
[333884219,1722598248693,-500.0,0.00019178,2]
[333884220,1722598248704,-500.0,0.00019178,2]
[333884221,1722598248714,-2566.68,0.00019178,2]
[333884222,1722598248724,-500.0,0.00019178,2]
[333884223,1722598248734,-500.0,0.00019178,2]
[333884224,1722598248744,-579.3,0.00019178,2]
[333884225,1722598248754,-2840.22,0.00019178,2]
[333884226,1722598248765,-2079.86,0.00019178,2]
[333884227,1722598248778,-500.0,0.00019178,2]
[333884228,1722598248788,-500.0,0.00019178,2]
[333884229,1722598248798,-500.0,0.00019178,2]
[333884230,1722598248810,-1003.49,0.00019178,2]
[333884231,1722598248820,-2592.76,0.00019178,2]
[333884232,1722598248830,-4060.89,0.00019178,2]
[333884233,1722598248840,-1805.43,0.00019178,2]
[333884234,1722598248850,-500.0,0.00019178,2]
[333884235,1722598248862,-824.66,0.00019178,2]
[333884236,1722598248871,-500.0,0.00019178,2]
[333884237,1722598248881,-500.0,0.00019178,2]
[333884238,1722598248892,-151.0,0.00019178,2]
[333884239,1722598248901,-151.0,0.00019178,2]
[333884240,1722598248911,-151.0,0.00019178,2]
[333884241,1722598248921,-500.0,0.00019178,2]
[333884242,1722598248932,-151.0,0.00019178,2]
[333884243,1722598248942,-151.0,0.00019178,2]
[333884244,1722598248952,-151.0,0.00019178,2]
[333884245,1722598248962,-151.0,0.00019178,2]
[333884246,1722598248972,-3005.65,0.00019178,2]
[333884247,1722598248982,-151.0,0.00019178,2]
[333884248,1722598248993,-3542.91,0.00019178,2]
[333884249,1722598249003,-500.0,0.00019178,2]
[333884250,1722598249013,-151.0,0.00019178,2]
[333884251,1722598249024,-151.0,0.00019178,2]
[333884252,1722598249034,-151.0,0.00019178,2]
[333884253,1722598249044,-239.14179,0.00019178,2]
[333884254,1722598249054,-500.0,0.00019178,2]
[333884255,1722598249064,-500.0,0.00019178,2]
[333884256,1722598249074,-500.0,0.00019178,2]
[333884257,1722598249087,-2967.2,0.00019178,2]
[333884258,1722598249097,-1159.14,0.00019178,2]
[333884259,1722598249107,-20000.0,0.00019178,2]
[333884260,1722598249117,-500.0,0.00019178,2]
[333884261,1722598249127,-500.0,0.00019178,2]
[333884262,1722598249137,-1394.57,0.00019178,2]
[333884263,1722598249541,-742.39,0.00019178,2]
[333884264,1722598249615,-560.11,0.00019178,2]
[333884265,1722598249625,-151.0,0.00019178,2]
[333884266,1722598249634,-151.0,0.00019178,2]
[333884267,1722598249644,-151.0,0.00019178,2]
[333884268,1722598249655,-1201.54,0.00019178,2]
[333884269,1722598249665,-855.36,0.00019178,2]
[333884270,1722598249675,-151.0,0.00019178,2]
[333884271,1722598249686,-1510.12,0.00019178,2]
[333884272,1722598249695,-151.0,0.00019178,2]
[333884273,1722598249705,-151.0,0.00019178,2]
[333884274,1722598249715,-1970.4,0.00019178,2]
[333884275,1722598249725,-151.0,0.00019178,2]
[333884276,1722598249734,-500.0,0.00019178,2]
[333884277,1722598249744,-500.0,0.00019178,2]
[333884278,1722598249753,-500.0,0.00019178,2]
[333884279,1722598249764,-3403.25,0.00019178,2]
[333884280,1722598249775,-517.30681211,0.00019178,2]
[333884281,1722598249785,-570.53652574,0.00019178,2]
[333884282,1722598249795,-500.0,0.00019178,2]
[333884283,1722598249806,-2115.57,0.00019178,2]
[333884284,1722598249816,-500.0,0.00019178,2]
[333884285,1722598249825,-639.03,0.00019178,2]
[333884286,1722598249835,-1216.67,0.00019178,2]
[333884287,1722598249845,-500.0,0.00019178,2]
[333884288,1722598249857,-500.0,0.00019178,2]
[333884289,1722598249867,-1253.57,0.00019178,2]
[333884290,1722598249877,-500.0,0.00019178,2]
[333884291,1722598249887,-500.0,0.00019178,2]
[333884292,1722598249896,-2715.87,0.00019178,2]
[333884293,1722598249906,-2448.88,0.00019178,2]
[333884294,1722598249916,-3725.62,0.00019178,2]
[333884295,1722598249925,-500.0,0.00019178,2]
[333884296,1722598249935,-652.69,0.00019178,2]
[333884297,1722598249945,-1933.31,0.00019178,2]
[333884298,1722598249955,-500.0,0.00019178,2]
[333884299,1722598249965,-500.0,0.00019178,2]
[333884300,1722598249975,-797.05,0.00019178,2]
[333884301,1722598249984,-500.0,0.00019178,2]
[333884302,1722598249994,-684.65,0.00019178,2]
[333884303,1722598250003,-1477.1,0.00019178,2]
[333884304,1722598250018,-1161.79,0.00019178,2]
[333884305,1722598250027,-1725.57,0.00019178,2]
[333884306,1722598250037,-1625.53,0.00019178,2]
[333884307,1722598250046,-500.0,0.00019178,2]
[333884308,1722598250057,-500.0,0.00019178,2]
[333884309,1722598250066,-500.0,0.00019178,2]
[333884310,1722598250076,-1213.99,0.00019178,2]
[333884311,1722598250086,-4028.45,0.00019178,2]
[333884312,1722598250095,-500.0,0.00019178,2]
[333884313,1722598250105,-1668.99,0.00019178,2]
[333884314,1722598250115,-1500.03,0.00019178,2]
[333884315,1722598250127,-500.0,0.00019178,2]
[333884316,1722598250136,-500.0,0.00019178,2]
[333884317,1722598250149,-500.0,0.00019178,2]
[333884318,1722598250158,-500.0,0.00019178,2]
[333884319,1722598250168,-1863.5,0.00019178,2]
[333884320,1722598250177,-500.0,0.00019178,2]
[333884321,1722598250188,-2970.09,0.00019178,2]
[333884322,1722598250199,-1859.13,0.00019178,2]
[333884323,1722598250210,-500.0,0.00019178,2]
[333884324,1722598250220,-500.0,0.00019178,2]
[333884325,1722598250231,-500.0,0.00019178,2]
[333884326,1722598250240,-500.0,0.00019178,2]
[333884327,1722598250250,-500.0,0.00019178,2]
[333884328,1722598250260,-2642.95,0.00019178,2]
[333884329,1722598250270,-4617.73,0.00019178,2]
[333884330,1722598250280,-605.07,0.00019178,2]
[333884331,1722598250290,-510.96,0.00019178,2]
[333884332,1722598250300,-853.32,0.00019178,2]
[333884333,1722598250310,-500.0,0.00019178,2]
[333884334,1722598250320,-2158.83,0.00019178,2]
[333884335,1722598250330,-2969.49,0.00019178,2]
[333884336,1722598250340,-3829.76,0.00019178,2]
[333884337,1722598250350,-500.0,0.00019178,2]
[333884338,1722598250360,-500.0,0.00019178,2]
[333884339,1722598250370,-1050.89,0.00019178,2]
[333884340,1722598250380,-500.0,0.00019178,2]
[333884341,1722598250390,-596.75,0.00019178,2]
[333884342,1722598250400,-151.0,0.00019178,2]
[333884343,1722598250410,-151.0,0.00019178,2]
[333884344,1722598250420,-151.0,0.00019178,2]
[333884345,1722598250429,-151.0,0.00019178,2]
[333884346,1722598250439,-561.22,0.00019178,2]
[333884347,1722598250449,-500.0,0.00019178,2]
[333884348,1722598250460,-500.0,0.00019178,2]
[333884349,1722598250470,-187.242592,0.00019178,2]
[333884350,1722598250480,-500.0,0.00019178,2]
[333884351,1722598250490,-1000.0,0.00019178,2]
[333884352,1722598250500,-565.99,0.00019178,2]
[333884353,1722598250509,-500.0,0.00019178,2]
[333884354,1722598250519,-500.0,0.00019178,2]
[333884355,1722598250529,-500.0,0.00019178,2]
[333884356,1722598250539,-500.0,0.00019178,2]
[333884357,1722598250549,-500.0,0.00019178,2]
[333884358,1722598250561,-936.16,0.00019178,2]
[333884359,1722598250570,-922.02,0.00019178,2]
[333884360,1722598250580,-451.9242926,0.00019178,2]
[333884361,1722598250590,-3701.17,0.00019178,2]
[333884362,1722598250599,-545.6,0.00019178,2]
[333884363,1722598250609,-3722.58,0.00019178,2]
[333884364,1722598250619,-500.0,0.00019178,2]
[333884365,1722598250629,-500.0,0.00019178,2]
[333884366,1722598250639,-1519.88,0.00019178,2]
[333884367,1722598250648,-500.0,0.00019178,2]
[333884368,1722598250658,-634.16085011,0.00019178,2]
[333884369,1722598250667,-645.68,0.00019178,2]
[333884370,1722598250677,-1105.75,0.00019178,2]
[333884371,1722598250686,-1248.04,0.00019178,2]
[333884372,1722598250695,-634.27,0.00019178,2]
[333884373,1722598250705,-500.0,0.00019178,2]
[333884374,1722598250715,-500.0,0.00019178,2]
[333884375,1722598250725,-500.0,0.00019178,2]
[333884376,1722598250734,-2115.38,0.00019178,2]
[333884377,1722598250744,-661.54,0.00019178,2]
[333884378,1722598250753,-500.0,0.00019178,2]
[333884379,1722598250762,-507.12660483,0.00019178,2]
[333884380,1722598250773,-500.0,0.00019178,2]
[333884381,1722598250785,-500.0,0.00019178,2]
[333884382,1722598250797,-4035.33,0.00019178,2]
[333884383,1722598250807,-500.0,0.00019178,2]
[333884384,1722598250818,-500.0,0.00019178,2]
[333884385,1722598250830,-500.0,0.00019178,2]
[333884386,1722598250840,-662.62,0.00019178,2]
[333884387,1722598250851,-1272.45,0.00019178,2]
[333884388,1722598250861,-500.0,0.00019178,2]
[333884389,1722598250871,-158.785305,0.00019178,2]
[333884390,1722598250880,-500.0,0.00019178,2]
[333884391,1722598250890,-500.0,0.00019178,2]
[333884392,1722598250900,-158.785305,0.00019178,2]
[333884393,1722598250910,-1978.94,0.00019178,2]
[333884394,1722598250919,-158.785305,0.00019178,2]
[333884395,1722598250929,-2785.34,0.00019178,2]
[333884396,1722598250939,-516.38,0.00019178,2]
[333884397,1722598250949,-158.785305,0.00019178,2]
[333884398,1722598250959,-715.862112,0.00019178,2]
[333884399,1722598250969,-158.785305,0.00019178,2]
[333884400,1722598250979,-715.862112,0.00019178,2]
[333884401,1722598250989,-158.785305,0.00019178,2]
[333884402,1722598251000,-715.862112,0.00019178,2]
[333884403,1722598251010,-500.0,0.00019178,2]
[333884404,1722598251020,-3943.97,0.00019178,2]
[333884405,1722598251030,-158.785305,0.00019178,2]
[333884406,1722598251040,-715.862112,0.00019178,2]
[333884407,1722598251050,-158.785305,0.00019178,2]
[333884408,1722598251061,-158.785305,0.00019178,2]
[333884409,1722598251071,-715.862112,0.00019178,2]
[333884410,1722598251080,-715.862112,0.00019178,2]
[333884411,1722598251090,-158.785305,0.00019178,2]
[333884412,1722598251100,-471.99174928,0.00019178,2]
[333884413,1722598251109,-715.862112,0.00019178,2]
[333884414,1722598251119,-705.12,0.00019178,2]
[333884415,1722598251129,-1120.5,0.00019178,2]
[333884416,1722598251139,-158.785305,0.00019178,2]
[333884417,1722598251148,-500.0,0.00019178,2]
[333884418,1722598251158,-819.17,0.00019178,2]
[333884419,1722598251167,-715.862112,0.00019178,2]
[333884420,1722598251177,-158.785305,0.00019178,2]
[333884421,1722598251187,-528.56,0.00019178,2]
[333884422,1722598251197,-500.0,0.00019178,2]
[333884423,1722598251208,-715.862112,0.00019178,2]
[333884424,1722598251219,-158.785305,0.00019178,2]
[333884425,1722598251230,-715.862112,0.00019178,2]
[333884426,1722598251241,-1827.12,0.00019178,2]
[333884427,1722598251252,-158.785305,0.00019178,2]
[333884428,1722598251263,-715.862112,0.00019178,2]
[333884429,1722598251273,-500.0,0.00019178,2]
[333884430,1722598251285,-500.0,0.00019178,2]
[333884431,1722598251296,-715.862112,0.00019178,2]
[333884432,1722598251307,-158.785305,0.00019178,2]
[333884433,1722598251316,-1657.74,0.00019178,2]
[333884434,1722598251325,-715.862112,0.00019178,2]
[333884435,1722598251335,-158.785305,0.00019178,2]
[333884436,1722598251344,-715.862112,0.00019178,2]
[333884437,1722598251353,-158.785305,0.00019178,2]
[333884438,1722598251363,-715.862112,0.00019178,2]
[333884439,1722598251372,-158.785305,0.00019178,2]
[333884440,1722598251382,-715.862112,0.00019178,2]
[333884441,1722598251392,-1318.08,0.00019178,2]
[333884442,1722598251402,-2000.0,0.00019178,2]
[333884443,1722598251411,-2537.35,0.00019178,2]
[333884444,1722598251421,-715.862112,0.00019178,2]
[333884445,1722598251431,-715.862112,0.00019178,2]
[333884446,1722598251441,-718.276491,0.00019178,2]
[333884447,1722598251451,-718.276491,0.00019178,2]
[333884448,1722598251460,-4328.72,0.00019178,2]
[333884449,1722598251469,-718.276491,0.00019178,2]
[333884450,1722598251479,-718.276491,0.00019178,2]
[333884451,1722598251488,-718.276491,0.00019178,2]
[333884452,1722598251498,-718.276491,0.00019178,2]
[333884453,1722598251507,-718.276491,0.00019178,2]
[333884454,1722598251517,-718.276491,0.00019178,2]
[333884455,1722598251526,-1659.39,0.00019178,2]
[333884456,1722598251536,-718.276491,0.00019178,2]
[333884457,1722598251545,-500.0,0.00019178,2]
[333884458,1722598251556,-500.0,0.00019178,2]
[333884459,1722598251568,-1966.6,0.00019178,2]
[333884460,1722598251578,-718.276491,0.00019178,2]
[333884461,1722598251588,-816.62,0.00019178,2]
[333884462,1722598251597,-500.0,0.00019178,2]
[333884463,1722598251607,-718.276491,0.00019178,2]
[333884464,1722598251616,-718.37,0.00019178,2]
[333884465,1722598251625,-718.276491,0.00019178,2]
[333884466,1722598251635,-2793.88,0.00019178,2]
[333884467,1722598251644,-718.276491,0.00019178,2]
[333884468,1722598251654,-718.276491,0.00019178,2]
[333884469,1722598251664,-718.276491,0.00019178,2]
[333884470,1722598251673,-2224.95,0.00019178,2]
[333884471,1722598251683,-718.276491,0.00019178,2]
[333884472,1722598251692,-718.276491,0.00019178,2]
[333884473,1722598251702,-500.0,0.00019178,2]
[333884474,1722598251712,-718.276491,0.00019178,2]
[333884475,1722598251721,-682.15,0.00019178,2]
[333884476,1722598251731,-1884.35,0.00019178,2]
[333884477,1722598251740,-761.68,0.00019178,2]
[333884478,1722598251750,-500.0,0.00019178,2]
[333884479,1722598251760,-4661.52,0.00019178,2]
[333884480,1722598251774,-2878.16,0.00019178,2]
[333884481,1722598251783,-500.0,0.00019178,2]
[333884482,1722598251793,-500.0,0.00019178,2]
[333884483,1722598251804,-500.0,0.00019178,2]
[333884484,1722598251815,-500.0,0.00019178,2]
[333884485,1722598251824,-1130.92,0.00019178,2]
[333884486,1722598251834,-597.57233173,0.00019178,2]
[333884487,1722598251845,-1667.77,0.00019178,2]
[333884488,1722598251861,-1599.85,0.00019178,2]
[333884489,1722598251871,-500.0,0.00019178,2]
[333884490,1722598251880,-2039.13,0.00019178,2]
[333884491,1722598251891,-2663.13,0.00019178,2]
[333884492,1722598251901,-1085.65,0.00019178,2]
[333884493,1722598251911,-1390.27,0.00019178,2]
[333884494,1722598251921,-683.4,0.00019178,2]
[333884495,1722598251931,-1042.76,0.00019178,2]
[333884496,1722598251940,-1365.28,0.00019178,2]
[333884497,1722598251950,-500.0,0.00019178,2]
[333884498,1722598251961,-500.0,0.00019178,2]
[333884499,1722598251970,-1385.86,0.00019178,2]
[333884500,1722598251979,-1134.12,0.00019178,2]
[333884501,1722598251988,-500.0,0.00019178,2]
[333884502,1722598252119,-440.65349065,0.00019178,2]
[333884503,1722598252130,-606.3,0.00019178,2]
[333884504,1722598252141,-500.0,0.00019178,2]
[333884505,1722598252152,-500.0,0.00019178,2]
[333884506,1722598252162,-500.0,0.00019178,2]
[333884507,1722598252171,-2386.7,0.00019178,2]
[333884508,1722598252182,-500.0,0.00019178,2]
[333884509,1722598252191,-500.0,0.00019178,2]
[333884510,1722598252201,-860.32,0.00019178,2]
[333884511,1722598252212,-151.0,0.00019178,2]
[333884512,1722598252223,-2245.88,0.00019178,2]
[333884513,1722598252232,-151.0,0.00019178,2]
[333884514,1722598252242,-2051.64,0.00019178,2]
[333884515,1722598252252,-500.0,0.00019178,2]
[333884516,1722598252262,-500.0,0.00019178,2]
[333884517,1722598252271,-2637.55,0.00019178,2]
[333884518,1722598252280,-2008.31,0.00019178,2]
[333884519,1722598252290,-272.16,0.00019178,2]
[333884520,1722598252299,-272.16,0.00019178,2]
[333884521,1722598252316,-272.16,0.00019178,2]
[333884522,1722598252326,-272.16,0.00019178,2]
[333884523,1722598252335,-272.16,0.00019178,2]
[333884524,1722598252345,-272.16,0.00019178,2]
[333884525,1722598252355,-272.16,0.00019178,2]
[333884526,1722598252366,-1260.73,0.00019178,2]
[333884527,1722598252375,-500.0,0.00019178,2]
[333884528,1722598252385,-151.0,0.00019178,2]
[333884529,1722598252395,-272.16,0.00019178,2]
[333884530,1722598252404,-151.0,0.00019178,2]
[333884531,1722598252415,-272.16,0.00019178,2]
[333884532,1722598252425,-151.0,0.00019178,2]
[333884533,1722598252435,-151.0,0.00019178,2]
[333884534,1722598252447,-668.1,0.00019178,2]
[333884535,1722598252456,-272.16,0.00019178,2]
[333884536,1722598252466,-272.16,0.00019178,2]
[333884537,1722598252478,-786.75,0.00019178,2]
[333884538,1722598252488,-3756.9,0.00019178,2]
[333884539,1722598252498,-272.16,0.00019178,2]
[333884540,1722598252507,-272.16,0.00019178,2]
[333884541,1722598252517,-272.16,0.00019178,2]
[333884542,1722598252527,-4339.91,0.00019178,2]
[333884543,1722598252536,-272.16,0.00019178,2]
[333884544,1722598252546,-500.0,0.00019178,2]
[333884545,1722598252559,-940.98,0.00019178,2]
[333884546,1722598252569,-500.0,0.00019178,2]
[333884547,1722598252578,-272.16,0.00019178,2]
[333884548,1722598252587,-272.16,0.00019178,2]
[333884549,1722598252596,-576.25,0.00019178,2]
[333884550,1722598252606,-272.16,0.00019178,2]
[333884551,1722598252615,-1810.11,0.00019178,2]
[333884552,1722598252624,-931.22,0.00019178,2]
[333884553,1722598252634,-805.11,0.00019178,2]
[333884554,1722598252643,-500.0,0.00019178,2]
[333884555,1722598252653,-500.0,0.00019178,2]